bitfinex/quotes_BTCUSD_20241014
["timestamp","ask_amount","ask_price","bid_price","bid_amount"]
[1728932156337,0.001652,65901.0,65900.0,1.18890966]
[1728932158085,0.01387489,65901.0,65900.0,1.18890966]
[1728932158327,0.031652,65901.0,65900.0,1.18890966]
[1728932159549,0.001652,65901.0,65900.0,1.18890966]
[1728932161173,0.04387489,65901.0,65900.0,1.03716466]
[1728932161424,0.19561689,65901.0,65900.0,1.03716466]
[1728932161670,0.04387489,65901.0,65900.0,1.18890966]
[1728932162168,0.001652,65901.0,65900.0,1.18890966]
[1728932162417,0.04387395,65901.0,65900.0,1.03716466]
[1728932162668,0.04387395,65901.0,65900.0,1.18890966]
[1728932163561,0.001652,65901.0,65900.0,1.18890966]
[1728932164413,0.04388213,65901.0,65900.0,1.18890966]
[1728932164850,0.04388213,65901.0,65900.0,1.03716466]
[1728932165956,0.04388213,65901.0,65900.0,1.18890966]
[1728932166166,0.04388213,65901.0,65900.0,1.03716466]
[1728932166167,0.19562413,65901.0,65900.0,1.03716466]
[1728932168468,0.20062413,65901.0,65900.0,1.03716466]
[1728932168689,0.29662413,65901.0,65900.0,1.03716466]
[1728932169600,0.29662413,65901.0,65900.0,1.02516466]
[1728932169868,0.29762413,65901.0,65900.0,1.02216466]
[1728932171146,0.30862413,65901.0,65900.0,1.03116466]
[1728932171353,0.40351515,65901.0,65900.0,1.03116466]
[1728932172303,0.40251515,65901.0,65900.0,1.02216466]
[1728932172529,0.40151515,65901.0,65900.0,1.01416466]
[1728932173028,0.40151515,65901.0,65900.0,1.01516466]
[1728932173263,0.40151515,65901.0,65900.0,1.01416466]
[1728932173477,0.40151515,65901.0,65900.0,1.01516466]
[1728932174852,0.40150682,65901.0,65900.0,1.01516466]
[1728932182878,0.38732413,65901.0,65900.0,1.01516466]
[1728932183116,0.40152969,65901.0,65900.0,1.01516466]
[1728932186837,0.40153175,65901.0,65900.0,1.01516466]
[1728932189476,0.40153175,65901.0,65900.0,0.51516466]
[1728932189948,0.51490845,65901.0,65900.0,0.51516466]
[1728932192607,0.40153175,65901.0,65900.0,0.51516466]
[1728932192801,0.22483175,65901.0,65900.0,0.51516466]
[1728932196947,0.77064487,65901.0,65900.0,0.05993466]
[1728932197929,0.83450002,65901.0,65900.0,0.05893466]
[1728932198338,0.83950002,65901.0,65900.0,0.05893466]
[1728932198550,0.8360923,65901.0,65900.0,0.05893466]
[1728932198761,0.8360923,65901.0,65900.0,0.05793466]
[1728932198956,0.8410923,65901.0,65900.0,0.05793466]
[1728932203073,0.82687673,65901.0,65900.0,0.05793466]
[1728932203284,0.84110386,65901.0,65900.0,0.05793466]
[1728932205961,0.40914354,65901.0,65900.0,0.05793466]
[1728932206175,0.33144354,65901.0,65900.0,0.05793466]
[1728932207453,0.33390252,65901.0,65900.0,0.05793466]
[1728932208284,0.23390252,65901.0,65900.0,0.05793466]
[1728932208509,0.23390252,65901.0,65900.0,0.15143466]
[1728932208724,0.23390252,65901.0,65900.0,0.05793466]
[1728932209155,0.22890252,65901.0,65900.0,0.05793466]
[1728932209792,0.07716052,65901.0,65900.0,0.05893466]
[1728932210004,0.22890252,65901.0,65900.0,0.05893466]
[1728932210418,0.06216052,65901.0,65900.0,0.21067966]
[1728932210665,0.06216042,65901.0,65900.0,0.21067966]
[1728932210867,0.001652,65901.0,65900.0,0.21067966]
[1728932211101,0.001652,65901.0,65900.0,0.30417966]
[1728932211319,0.001652,65901.0,65900.0,0.38017966]
[1728932211750,0.001652,65901.0,65900.0,0.38117966]
[1728932212024,0.001652,65901.0,65900.0,0.38017966]
[1728932212238,0.002652,65901.0,65900.0,0.38817966]
[1728932212455,0.003652,65901.0,65900.0,0.39717966]
[1728932214691,0.190394,65901.0,65900.0,0.07593466]
[1728932214967,0.21625438,65901.0,65900.0,0.07593466]
[1728932215594,0.21625438,65901.0,65900.0,0.06693466]
[1728932215595,0.39248623,65901.0,65900.0,0.06693466]
[1728932215844,0.39248623,65901.0,65900.0,0.07393466]
[1728932216055,0.21425438,65901.0,65900.0,0.06493466]
[1728932217332,0.21525438,65901.0,65900.0,0.07193466]
[1728932219685,0.29205438,65901.0,65900.0,0.07193466]
[1728932219875,0.21525438,65901.0,65900.0,0.07193466]
[1728932221309,1.01234655,65901.0,65900.0,0.07193466]
[1728932221520,0.8351147,65901.0,65900.0,0.07193466]
[1728932221942,0.8341147,65901.0,65900.0,0.06493466]
[1728932222149,0.8341147,65901.0,65900.0,0.05793466]
[1728932222569,0.8391147,65901.0,65900.0,0.05793466]
[1728932222793,0.8341147,65901.0,65900.0,0.05793466]
[1728932223202,0.8391147,65901.0,65900.0,0.05793466]
[1728932224183,0.8431147,65901.0,65900.0,0.05793466]
[1728932224362,0.8381147,65901.0,65900.0,0.05793466]
[1728932224571,0.8341147,65901.0,65900.0,0.05793466]
[1728932224885,0.8401147,65901.0,65900.0,0.05893466]
[1728932225087,0.8451147,65901.0,65900.0,0.05893466]
[1728932226802,0.84510661,65901.0,65900.0,0.05893466]
[1728932230424,0.48877476,65901.0,65900.0,0.05893466]
[1728932230905,0.47457294,65901.0,65900.0,0.05893466]
[1728932231121,0.48877091,65901.0,65900.0,0.05893466]
[1728932233048,0.23524244,65901.0,65900.0,0.05893466]
[1728932234516,0.38877091,65901.0,65900.0,0.05893466]
[1728932235186,0.3887723,65901.0,65900.0,0.05893466]
[1728932235803,0.4937723,65901.0,65900.0,0.05893466]
[1728932236032,0.67100415,65901.0,65900.0,0.05893466]
[1728932236239,0.4937723,65901.0,65900.0,0.05893466]
[1728932237538,0.5735723,65901.0,65900.0,0.05893466]
[1728932243708,0.57358023,65901.0,65900.0,0.05893466]
[1728932245728,0.87791208,65901.0,65900.0,0.05893466]
[1728932246442,0.87791208,65901.0,65894.0,0.001652]
[1728932246443,0.87791208,65901.0,65875.0,0.22794101]
[1728932246444,0.3348,65876.0,65875.0,0.22794101]
[1728932246678,0.52623914,65876.0,65875.0,0.22794101]
[1728932246899,0.52623914,65876.0,65867.0,0.22794101]
[1728932246900,0.301818,65868.0,65867.0,0.22794101]
[1728932247119,0.49325714,65868.0,65867.0,0.22794101]
[1728932247539,0.18683,65863.0,65862.0,0.00165]
[1728932247829,0.36456576,65863.0,65862.0,0.00165]
[1728932248027,0.37567079,65863.0,65862.0,0.00165]
[1728932249021,0.38767079,65863.0,65862.0,0.00265]
[1728932249505,0.39267079,65863.0,65862.0,0.00265]
[1728932250199,0.38067079,65863.0,65862.0,0.00165]
[1728932250420,0.39467079,65863.0,65862.0,0.00265]
[1728932251301,0.3804635,65863.0,65862.0,0.00265]
[1728932253073,0.22693503,65863.0,65862.0,0.10235]
[1728932253316,0.07510503,65863.0,65862.0,0.10235]
[1728932253530,0.07510503,65863.0,65862.0,0.17985]
[1728932254194,0.04610503,65863.0,65862.0,0.17885]
[1728932254634,0.05910503,65863.0,65862.0,0.17985]
[1728932254852,0.043,65863.0,65862.0,0.17985]
[1728932255002,0.05406096,65863.0,65862.0,0.331682]
[1728932255223,0.043,65863.0,65862.0,0.331682]
[1728932256022,0.03,65863.0,65862.0,0.334682]
[1728932256261,0.03,65863.0,65862.0,0.638342]
[1728932256428,0.039,65863.0,65862.0,0.639342]
[1728932256663,0.039,65863.0,65862.0,0.634342]
[1728932257063,0.044,65863.0,65862.0,0.634342]
[1728932257455,0.044,65863.0,65862.0,0.330682]
[1728932257910,0.045,65863.0,65862.0,0.337682]
[1728932266591,0.045,65863.0,65862.0,0.837682]
[1728932272040,0.045,65863.0,65862.0,0.836682]
[1728932272492,0.045,65863.0,65862.0,0.99021047]
[1728932272740,0.045,65863.0,65862.0,0.50765]
[1728932272741,0.25762582,65863.0,65862.0,0.50765]
[1728932272951,0.22601697,65863.0,65862.0,0.50765]
[1728932273238,0.46787705,65863.0,65862.0,0.50765]
[1728932273467,0.46687705,65863.0,65862.0,0.50065]
[1728932273692,0.45287705,65863.0,65862.0,0.50065]
[1728932273938,0.45387705,65863.0,65862.0,0.50765]
[1728932274168,0.45887705,65863.0,65862.0,0.50765]
[1728932274387,0.45287705,65863.0,65862.0,0.50065]
[1728932274637,0.65857705,65863.0,65862.0,0.50065]
[1728932274865,0.8358089,65863.0,65862.0,0.50065]
[1728932275322,0.8378089,65863.0,65862.0,0.50065]
[1728932275566,0.66057705,65863.0,65862.0,0.50065]
[1728932275805,0.67057705,65863.0,65862.0,0.50165]
[1728932276478,0.65857705,65863.0,65862.0,0.50065]
[1728932276703,0.67257705,65863.0,65862.0,0.50165]
[1728932276981,0.67257705,65863.0,65862.0,0.50265]
[1728932276982,0.67457705,65863.0,65862.0,0.50265]
[1728932277450,0.67257705,65863.0,65862.0,0.00165]
[1728932277929,0.67457705,65863.0,65862.0,0.00265]
[1728932280220,0.56887705,65863.0,65862.0,0.00265]
[1728932280464,0.49127705,65863.0,65862.0,0.00265]
[1728932280678,0.49627705,65863.0,65862.0,0.00265]
[1728932282334,0.50127705,65863.0,65862.0,0.00265]
[1728932282783,0.48209008,65863.0,65862.0,0.00265]
[1728932283030,0.50625934,65863.0,65862.0,0.00265]
[1728932283727,0.76289119,65863.0,65862.0,0.00265]
[1728932284211,0.76489119,65863.0,65862.0,0.00265]
[1728932285393,0.78789119,65863.0,65862.0,0.00265]
[1728932286087,0.78589119,65863.0,65862.0,0.00265]
[1728932286764,0.78587986,65863.0,65862.0,0.00265]
[1728932286998,0.60864801,65863.0,65862.0,0.00265]
[1728932287972,0.58564801,65863.0,65862.0,0.00265]
[1728932289805,0.66847986,65863.0,65862.0,0.00265]
[1728932290549,0.65247986,65863.0,65862.0,0.00065]
[1728932290773,0.65248424,65863.0,65862.0,0.00065]
[1728932291018,0.67148424,65863.0,65862.0,0.00165]
[1728932292222,0.67648424,65863.0,65862.0,0.00165]
[1728932292436,0.67148424,65863.0,65862.0,0.00165]
[1728932292882,0.67648424,65863.0,65862.0,0.00165]
[1728932293107,0.005,65851.0,65850.0,0.43122401]
[1728932293320,0.005,65851.0,65850.0,0.27936601]
[1728932293545,0.005,65851.0,65850.0,0.0768]
[1728932293546,0.04570005,65851.0,65850.0,0.0768]
[1728932294027,0.19755705,65851.0,65850.0,0.0768]
[1728932294248,0.04570005,65851.0,65850.0,0.22866]
[1728932294480,0.04670005,65851.0,65850.0,0.23466]
[1728932294889,0.04670005,65851.0,65850.0,0.0828]
[1728932295137,0.04670005,65851.0,65850.0,0.23466]
[1728932295566,0.05170005,65851.0,65850.0,0.23466]
[1728932296186,0.041,65851.0,65850.0,0.0828]
[1728932296404,0.05167836,65851.0,65850.0,0.0828]
[1728932297262,0.05167836,65851.0,65850.0,0.006]
[1728932297688,0.20353536,65851.0,65850.0,0.006]
[1728932299884,0.05167836,65851.0,65850.0,0.006]
[1728932300313,0.0551763,65851.0,65850.0,0.006]
[1728932300559,0.21733447,65851.0,65850.0,0.006]
[1728932300771,0.05130117,65851.0,65850.0,0.006]
[1728932300992,0.20315817,65851.0,65850.0,0.006]
[1728932301236,0.21733366,65851.0,65850.0,0.006]
[1728932302607,0.22233366,65851.0,65850.0,0.006]
[1728932304143,0.22733366,65851.0,65850.0,0.006]
[1728932304996,0.22733366,65851.0,65850.0,0.006826]
[1728932306484,0.21315817,65851.0,65850.0,0.006826]
[1728932306696,0.22736092,65851.0,65850.0,0.006826]
[1728932307657,0.22236092,65851.0,65850.0,0.006826]
[1728932308066,0.21736092,65851.0,65850.0,0.006826]
[1728932309172,0.06550392,65851.0,65850.0,0.006826]
[1728932310491,0.06551295,65851.0,65850.0,0.006826]
[1728932310755,0.06051295,65851.0,65850.0,0.158686]
[1728932310982,0.04630117,65851.0,65850.0,0.250786]
[1728932311212,0.04630117,65851.0,65850.0,0.40431447]
[1728932311213,0.036,65851.0,65850.0,0.40431447]
[1728932311455,0.036,65851.0,65850.0,0.53067954]
[1728932311671,0.036,65851.0,65850.0,0.48321447]
[1728932312102,0.035,65851.0,65850.0,0.47923602]
[1728932312321,0.02897845,65851.0,65850.0,0.49021447]
[1728932312784,0.02797845,65851.0,65850.0,0.47721447]
[1728932313002,0.02797845,65851.0,65850.0,0.48021447]
[1728932313232,0.02897845,65851.0,65850.0,0.49421447]
[1728932313456,0.02897845,65851.0,65850.0,0.49121447]
[1728932313685,0.02897845,65851.0,65850.0,0.33935447]
[1728932314853,0.02997845,65851.0,65850.0,0.34735447]
[1728932315334,0.002,65851.0,65850.0,0.34735447]
[1728932316716,0.003652,65851.0,65850.0,0.34735447]
[1728932317574,0.003652,65851.0,65850.0,0.39281898]
[1728932318499,0.003652,65851.0,65850.0,0.34735447]
[1728932318726,0.003652,65851.0,65850.0,0.39285822]
[1728932319920,0.003652,65851.0,65850.0,0.39285429]
[1728932322584,0.003652,65851.0,65850.0,0.34735447]
[1728932333415,0.003652,65851.0,65850.0,0.39284027]
[1728932334575,0.003652,65851.0,65850.0,0.34735447]
[1728932335020,0.003652,65851.0,65850.0,0.39284229]
[1728932335244,0.003652,65851.0,65850.0,0.34735447]
[1728932335685,0.003652,65851.0,65850.0,0.39284229]
[1728932336324,0.003652,65851.0,65850.0,0.34735447]
[1728932339322,0.003652,65851.0,65850.0,0.49921447]
[1728932339533,0.003652,65851.0,65850.0,0.34735447]
[1728932339935,0.003652,65851.0,65850.0,0.49921447]
[1728932340140,0.003652,65851.0,65850.0,0.34735447]
[1728932341770,0.003652,65851.0,65850.0,0.022826]
[1728932341771,0.18848745,65851.0,65850.0,0.022826]
[1728932341975,0.20271083,65851.0,65850.0,0.022826]
[1728932342175,0.31073231,65851.0,65850.0,0.022826]
[1728932342381,0.31973017,65851.0,65850.0,0.014826]
[1728932342581,0.31973017,65851.0,65850.0,0.000826]
[1728932342582,0.31873017,65851.0,65850.0,0.000826]
[1728932342793,0.31873017,65851.0,65850.0,0.002826]
[1728932342994,0.31873017,65851.0,65850.0,0.000826]
[1728932343822,0.31873017,65851.0,65850.0,0.014826]
[1728932343823,0.32573017,65851.0,65850.0,0.014826]
[1728932344347,0.32573017,65851.0,65850.0,0.001826]
[1728932344793,0.32573017,65851.0,65850.0,0.005826]
[1728932346508,0.32569813,65851.0,65850.0,0.005826]
[1728932346941,0.31150893,65851.0,65850.0,0.005826]
[1728932347168,0.32570457,65851.0,65850.0,0.005826]
[1728932349624,0.66453304,65851.0,65850.0,0.005826]
[1728932350703,0.66453304,65851.0,65850.0,0.001826]
[1728932350921,0.66853122,65851.0,65850.0,0.001826]
[1728932351793,0.66853122,65851.0,65850.0,0.000826]
[1728932351794,0.66153122,65851.0,65850.0,0.000826]
[1728932352261,0.67553122,65851.0,65850.0,0.000826]
[1728932352959,0.90347223,65851.0,65850.0,0.000826]
[1728932353198,0.69853122,65851.0,65850.0,0.000826]
[1728932353688,0.70619466,65851.0,65850.0,0.000826]
[1728932354374,0.70819466,65851.0,65850.0,0.000826]
[1728932354838,0.70619466,65851.0,65850.0,0.000826]
[1728932355061,0.71819466,65851.0,65850.0,0.000826]
[1728932355987,0.71619466,65851.0,65850.0,0.000826]
[1728932357475,0.69319466,65851.0,65850.0,0.000826]
[1728932357670,0.67553122,65851.0,65850.0,0.000826]
[1728932357873,0.67653122,65851.0,65850.0,0.000826]
[1728932358520,0.41820275,65851.0,65850.0,0.001826]
[1728932358772,0.32390275,65851.0,65850.0,0.001826]
[1728932358904,0.33790275,65851.0,65850.0,0.001826]
[1728932359116,0.32370893,65851.0,65850.0,0.001826]
[1728932359315,0.3238775,65851.0,65850.0,0.001826]
[1728932359543,0.3378775,65851.0,65850.0,0.001826]
[1728932359747,0.3328775,65851.0,65850.0,0.000826]
[1728932359947,0.3188775,65851.0,65850.0,0.000826]
[1728932360124,0.3328775,65851.0,65850.0,0.000826]
[1728932360472,0.3378775,65851.0,65850.0,0.000826]
[1728932361089,0.3328775,65851.0,65850.0,0.000826]
[1728932361443,0.3348775,65851.0,65850.0,0.000826]
[1728932363015,0.32070893,65851.0,65850.0,0.000826]
[1728932363235,0.33488403,65851.0,65850.0,0.000826]
[1728932367235,0.33489679,65851.0,65850.0,0.000826]
[1728932371309,0.32070893,65851.0,65850.0,0.000826]
[1728932371520,0.33490738,65851.0,65850.0,0.000826]
[1728932371756,0.3349153,65851.0,65850.0,0.000826]
[1728932372001,0.0680583,65851.0,65850.0,0.11434512]
[1728932372236,0.0680583,65851.0,65850.0,0.26620512]
[1728932372466,0.04563045,65851.0,65850.0,0.26620512]
[1728932372927,0.03163045,65851.0,65850.0,0.26620512]
[1728932373149,0.02963045,65851.0,65850.0,0.26620512]
[1728932373393,0.04363045,65851.0,65850.0,0.26620512]
[1728932373628,0.03163045,65851.0,65850.0,0.26620512]
[1728932373888,0.03363045,65851.0,65850.0,0.26620512]
[1728932374144,0.03363045,65851.0,65850.0,0.000826]
[1728932374145,0.03163045,65851.0,65850.0,0.000826]
[1728932374368,0.03263045,65851.0,65850.0,0.008826]
[1728932378462,0.18448745,65851.0,65850.0,0.008826]
[1728932378865,0.03263045,65851.0,65850.0,0.008826]
[1728932379479,0.53042263,65851.0,65850.0,0.008826]
[1728932379849,0.54461215,65851.0,65850.0,0.008826]
[1728932380052,0.5512742,65851.0,65850.0,0.008826]
[1728932380279,0.6511742,65851.0,65850.0,0.008826]
[1728932380484,0.6501742,65851.0,65850.0,0.000826]
[1728932380840,0.64351215,65851.0,65850.0,0.000826]
[1728932381052,0.75017923,65851.0,65850.0,0.000826]
[1728932381660,0.75317923,65851.0,65850.0,0.000826]
[1728932381870,0.75117923,65851.0,65850.0,0.000826]
[1728932382257,0.76217923,65851.0,65850.0,0.000826]
[1728932382634,0.76517923,65851.0,65850.0,0.000826]
[1728932383054,0.75098971,65851.0,65850.0,0.000826]
[1728932383261,0.77017839,65851.0,65850.0,0.000826]
[1728932383472,0.85077839,65851.0,65850.0,0.000826]
[1728932384386,0.85277839,65851.0,65850.0,0.000826]
[1728932384604,0.85077839,65851.0,65850.0,0.000826]
[1728932385018,0.85277839,65851.0,65850.0,0.000826]
[1728932385640,0.85077839,65851.0,65850.0,0.000826]
[1728932387316,0.85277839,65851.0,65850.0,0.000826]
[1728932388661,0.85077839,65851.0,65850.0,0.000826]
[1728932393228,0.84577839,65851.0,65850.0,0.000826]
[1728932393449,0.74587839,65851.0,65850.0,0.000826]
[1728932393678,0.73921131,65851.0,65850.0,0.000826]
[1728932394820,0.73921954,65851.0,65850.0,0.000826]
[1728932395062,0.73921887,65851.0,65850.0,0.000826]
[1728932401279,0.48121216,65851.0,65850.0,0.000826]
[1728932401502,0.48621216,65851.0,65850.0,0.000826]
[1728932401720,0.66361887,65851.0,65850.0,0.000826]
[1728932402379,0.66061887,65851.0,65850.0,0.000826]
[1728932402839,0.46821216,65851.0,65850.0,0.000826]
[1728932403053,0.64561887,65851.0,65850.0,0.000826]
[1728932403274,0.65961887,65851.0,65850.0,0.000826]
[1728932405288,0.83961887,65851.0,65850.0,0.000826]
[1728932405499,0.47665645,65842.0,65841.0,0.0005]
[1728932405720,0.77681391,65842.0,65841.0,1e-06]
[1728932405935,1.03220524,65842.0,65841.0,1e-06]
[1728932406149,1.03420524,65842.0,65841.0,1e-06]
[1728932407449,1.03220524,65842.0,65841.0,1e-06]
[1728932407863,1.04620524,65842.0,65841.0,1e-06]
[1728932408290,1.04620524,65842.0,65841.0,0.001001]
[1728932408711,1.06220524,65842.0,65841.0,0.001826]
[1728932408933,1.1757534,65842.0,65841.0,0.001826]
[1728932409585,1.15299426,65842.0,65841.0,0.001826]
[1728932410082,0.29987745,65833.0,65832.0,0.22455701]
[1728932410300,0.63081263,65833.0,65832.0,0.22455701]
[1728932410545,0.19489345,65826.0,65821.0,0.0005]
[1728932410787,0.34842192,65826.0,65821.0,0.0005]
[1728932410993,0.17990245,65822.0,65821.0,0.0005]
[1728932411207,0.33343092,65822.0,65821.0,0.0005]
[1728932411421,0.03297845,65822.0,65821.0,0.0005]
[1728932411649,0.04717036,65822.0,65821.0,0.0005]
[1728932411867,0.03297845,65822.0,65821.0,0.0005]
[1728932412296,0.03297845,65822.0,65821.0,0.0025]
[1728932412734,0.03297845,65822.0,65821.0,0.0085]
[1728932412984,0.04297845,65822.0,65821.0,0.0085]
[1728932413430,0.19490245,65822.0,65821.0,0.0085]
[1728932413893,0.04297845,65822.0,65821.0,0.0085]
[1728932415040,0.19490245,65822.0,65821.0,0.0085]
[1728932415262,0.36261575,65822.0,65821.0,0.0085]
[1728932415483,0.20908728,65822.0,65821.0,0.0085]
[1728932415701,0.04297845,65822.0,65821.0,0.0085]
[1728932415909,0.19490245,65822.0,65821.0,0.0085]
[1728932416773,0.19490245,65822.0,65821.0,0.0065]
[1728932416986,0.19490245,65822.0,65821.0,0.006]
[1728932417175,0.02797845,65819.0,65818.0,0.0536]
[1728932417668,0.03496176,65819.0,65818.0,0.0536]
[1728932419247,0.04296176,65819.0,65818.0,0.0566]
[1728932420718,0.03597845,65819.0,65818.0,0.0566]
[1728932420929,0.04294722,65819.0,65818.0,0.0566]
[1728932421781,0.04294722,65819.0,65818.0,0.208534]
[1728932421996,0.04294722,65819.0,65818.0,0.81217589]
[1728932422210,0.03597845,65819.0,65818.0,0.81217589]
[1728932422418,0.03597845,65819.0,65818.0,0.81417589]
[1728932423148,0.03597845,65819.0,65818.0,0.882455]
[1728932423356,0.25794101,65831.0,65830.0,0.181906]
[1728932423567,0.25794101,65831.0,65830.0,0.53541271]
[1728932423974,0.03,65831.0,65830.0,0.53541271]
[1728932424206,0.03,65831.0,65830.0,0.38350671]
[1728932424415,0.03,65831.0,65830.0,0.53541271]
[1728932425080,0.03,65831.0,65830.0,0.54441271]
[1728932425081,0.031,65831.0,65830.0,0.54441271]
[1728932425537,0.03224037,65831.0,65830.0,0.54441271]
[1728932427118,0.03224037,65831.0,65830.0,0.2151]
[1728932427333,0.03224037,65831.0,65830.0,0.367006]
[1728932431384,0.00224037,65831.0,65830.0,0.367006]
[1728932432572,0.00389037,65831.0,65830.0,0.367006]
[1728932434234,0.00389037,65831.0,65830.0,0.232046]
[1728932435575,0.03389037,65831.0,65830.0,0.232046]
[1728932436631,0.00389037,65831.0,65830.0,0.232046]
[1728932437245,0.00389037,65831.0,65830.0,0.311446]
[1728932438107,0.00389037,65831.0,65830.0,0.46497447]
[1728932438359,0.00389037,65831.0,65830.0,0.46697447]
[1728932438594,0.00389037,65831.0,65830.0,0.51242123]
[1728932438783,0.00389037,65831.0,65830.0,0.46697447]
[1728932439417,0.00389037,65831.0,65830.0,0.48997447]
[1728932439722,0.00389037,65831.0,65830.0,0.65814461]
[1728932439952,0.00389037,65831.0,65830.0,0.83555132]
[1728932440154,0.00389037,65831.0,65830.0,0.58997447]
[1728932440369,0.00365,65831.0,65830.0,0.671868]
[1728932440798,0.00265,65831.0,65830.0,0.59297447]
[1728932441019,0.00265,65831.0,65830.0,0.59697447]
[1728932441225,0.00165,65831.0,65830.0,0.58497447]
[1728932441441,0.00165,65831.0,65830.0,0.58397447]
[1728932441662,0.00165,65831.0,65830.0,0.67478369]
[1728932441881,0.00165,65831.0,65830.0,0.66878369]
[1728932442171,0.00165,65831.0,65830.0,0.55497447]
[1728932442417,0.00265,65831.0,65830.0,0.227046]
[1728932443087,0.00265,65831.0,65830.0,0.156906]
[1728932443294,0.00265,65831.0,65830.0,0.157906]
[1728932443508,0.00165,65831.0,65830.0,0.152906]
[1728932443716,0.00265,65831.0,65830.0,0.159906]
[1728932444117,0.00265,65831.0,65830.0,0.173906]
[1728932445215,0.00265,65831.0,65830.0,0.174731]
[1728932445430,0.00265,65831.0,65830.0,0.022825]
[1728932445641,0.00265,65831.0,65830.0,0.008825]
[1728932446105,0.00365,65831.0,65830.0,0.017825]
[1728932446336,0.03365,65831.0,65830.0,0.017825]
[1728932446554,0.03165,65831.0,65830.0,0.000825]
[1728932446774,0.03165,65831.0,65830.0,0.159731]
[1728932446995,0.03265,65831.0,65830.0,0.159731]
[1728932447427,0.03565,65831.0,65830.0,0.159731]
[1728932448071,0.04065,65831.0,65830.0,0.007825]
[1728932449445,0.04065,65831.0,65830.0,0.159731]
[1728932449676,0.04065,65831.0,65830.0,0.007825]
[1728932449900,0.04065,65831.0,65830.0,0.159731]
[1728932450567,0.04065,65831.0,65830.0,0.007825]
[1728932451298,0.69228918,65831.0,65830.0,0.007825]
[1728932451526,0.70648379,65831.0,65830.0,0.007825]
[1728932451764,0.71783917,65831.0,65830.0,0.007825]
[1728932452214,0.71683917,65831.0,65830.0,0.000825]
[1728932452666,0.71383917,65831.0,65830.0,0.000825]
[1728932452910,0.53643246,65831.0,65830.0,0.000825]
[1728932453141,0.54643246,65831.0,65830.0,0.000825]
[1728932453843,0.15039999,65831.0,65830.0,0.000825]
[1728932454290,0.13904461,65831.0,65830.0,0.000825]
[1728932456415,0.62188379,65831.0,65830.0,0.000825]
[1728932456653,0.71548379,65831.0,65830.0,0.000825]
[1728932457529,0.71547516,65831.0,65830.0,0.000825]
[1728932458804,0.13903598,65831.0,65830.0,0.000825]
[1728932459016,0.29093998,65831.0,65830.0,0.000825]
[1728932459240,0.45446845,65831.0,65830.0,0.000825]
[1728932459451,0.55076845,65831.0,65830.0,0.000825]
[1728932459883,0.65076845,65831.0,65830.0,0.000825]
[1728932460311,0.64576845,65831.0,65830.0,0.000825]
[1728932460973,0.65076845,65831.0,65830.0,0.000825]
[1728932461438,0.87870946,65831.0,65830.0,0.000825]
[1728932461653,0.86317516,65831.0,65830.0,0.000825]
[1728932461868,0.68576845,65831.0,65830.0,0.000825]
[1728932462117,0.69711396,65831.0,65830.0,0.000825]
[1728932462566,0.02,65819.0,65818.0,0.000825]
[1728932462784,0.83839767,65819.0,65818.0,0.000825]
[1728932463021,0.82705216,65819.0,65818.0,0.000825]
[1728932463483,0.01,65810.0,65807.0,0.0174798]
[1728932463710,0.86007316,65810.0,65807.0,0.0174798]
[1728932463942,0.83707316,65810.0,65807.0,0.0174798]
[1728932464168,0.82288718,65810.0,65807.0,0.0174798]
[1728932464435,0.83705121,65810.0,65807.0,0.0174798]
[1728932465811,0.83905121,65810.0,65807.0,0.0174798]
[1728932466055,0.83705121,65810.0,65807.0,0.0174798]
[1728932466313,0.84805121,65810.0,65809.0,0.001825]
[1728932466737,0.84605121,65810.0,65809.0,0.001825]
[1728932467661,0.85390817,65810.0,65809.0,0.001825]
[1728932467879,0.86790817,65810.0,65809.0,0.001825]
[1728932469724,0.89290817,65810.0,65809.0,0.001825]
[1728932470200,0.89090817,65810.0,65809.0,0.001825]
[1728932470444,0.86790817,65810.0,65809.0,0.001825]
[1728932470688,0.5729445,65810.0,65809.0,0.001825]
[1728932471867,0.219952,65810.0,65809.0,0.001825]
[1728932473547,0.210952,65810.0,65809.0,0.000825]
[1728932473792,0.200952,65810.0,65809.0,0.000825]
[1728932474032,0.200952,65810.0,65809.0,0.152779]
[1728932474033,0.048,65810.0,65809.0,0.152779]
[1728932474750,0.044,65810.0,65809.0,0.152779]
[1728932474973,0.004,65810.0,65809.0,0.152779]
[1728932475448,0.048,65810.0,65809.0,0.30630747]
[1728932475664,0.034,65810.0,65809.0,0.30630747]
[1728932476793,0.034,65810.0,65809.0,0.48571418]
[1728932477016,0.028,65810.0,65809.0,0.68891418]
[1728932477476,0.03,65810.0,65809.0,0.54890401]
[1728932477695,0.03,65810.0,65809.0,0.198025]
[1728932477917,0.03,65810.0,65809.0,0.349979]
[1728932479531,0.03,65810.0,65809.0,0.267579]
[1728932479749,0.03,65810.0,65809.0,0.167779]
[1728932479974,0.029,65810.0,65809.0,0.166779]
[1728932480193,0.029,65810.0,65809.0,0.167779]
[1728932480637,0.028,65810.0,65809.0,0.153779]
[1728932481071,0.029,65810.0,65809.0,0.165779]
[1728932481547,0.029,65810.0,65809.0,0.31930747]
[1728932481796,0.029,65810.0,65809.0,0.41160747]
[1728932484088,0.001,65810.0,65809.0,0.41160747]
[1728932484981,0.001,65810.0,65809.0,0.31930747]
[1728932485420,0.001,65810.0,65809.0,0.49671418]
[1728932487043,0.001,65810.0,65809.0,0.69281418]
[1728932487703,0.001,65810.0,65809.0,0.73806577]
[1728932487919,0.001,65810.0,65809.0,0.73706577]
[1728932488137,0.028,65821.0,65820.0,0.151929]
[1728932488348,0.028,65821.0,65820.0,0.32933571]
[1728932490597,0.032,65821.0,65820.0,0.32933571]
[1728932491336,0.032,65821.0,65820.0,0.33433571]
[1728932492012,0.004,65821.0,65820.0,0.33433571]
[1728932495911,0.004,65821.0,65820.0,0.156929]
[1728932496134,0.004,65821.0,65820.0,0.33433571]
[1728932496826,0.004,65821.0,65820.0,0.76327089]
[1728932497085,0.004,65821.0,65820.0,0.86747089]
[1728932497542,0.004,65821.0,65820.0,0.90780111]
[1728932498022,0.028,65826.0,65825.0,0.174917]
[1728932498258,0.028,65826.0,65825.0,0.59765218]
[1728932498786,0.028,65826.0,65825.0,0.67605218]
[1728932500411,0.028,65826.0,65825.0,0.69005218]